[Event "HUN Women vs Morgan Stanley 2022"]
[Site "Budapest"]
[Date "2022.06.27"]
[Round "1.1"]
[White "Hoang, Thanh Trang"]
[Black "Torma, Robert"]
[Result "0-1"]
[ECO "D04"]
[WhiteElo "2376"]
[BlackElo "2421"]
[Annotator "TA"]
[PlyCount "128"]
[EventDate "2022.06.27"]
[EventType "schev"]
[EventCountry "HUN"]
[SourceTitle "playchess.com"]
[Source "ChessBase"]
[SourceQuality "1"]
[TimeControl "900+2"]

{[%evp 9,128,-17,-17,-12,-12,-14,-6,-13,-19,-11,-11,-9,-10,-10,-14,-4,0,0,14,5,0,0,16,-1,0,0,0,0,0,-12,2,-42,0,-56,-43,-53,-22,-45,-11,-35,-34,-45,-32,-71,-42,-56,-24,-15,-16,-41,-23,-146,-143,-160,-143,-431,-419,-431,-421,-485,-343,-344,-338,-390,134,133,111,109,238,-188,-179,-339,-350,-314,-330,-434,-427,-418,-377,-810,-770,-671,-419,-419,-414,-374,-289,-289,-281,-266,-188,-158,-146,-295,-160,-169,-145,-145,-135,-194,-145,-151,-104,-141,-146,-550,-532,-482,-14,-14,-14,-145,-14,-14,-14,-29972,-29973,-29972,-29973,-29983,-29984]} 1. d4 {[%emt 0:00:05]} Nf6 {[%emt 0:00:04]} 2. Nf3 {[%emt 0:00:04]} d5 {[%emt 0:00:04]} 3. e3 {[%emt 0:00:09]} c5 {[%emt 0:00:12]} 4. Bd3 {[%emt 0:00:33]} Nc6 {[%emt 0:00:19]} 5. c3 {[%emt 0:00:54]} Bg4 {[%emt 0:01:22]} 6. h3 {[%emt 0:01:18] D05: Colle System with ...e6.} Bh5 {[%emt 0:01:10]} 7. Nbd2 {[%emt 0:01:49]} cxd4 {[%emt 0:00:20]} 8. exd4 {[%emt 0:00:15] The position is equal.} e6 {[%emt 0:00:09]} 9. O-O {[%emt 0:01:48]} Bd6 {[%emt 0:00:11]} 10. Re1 {[%emt 0:00:13]} O-O $1 {[%emt 0:00:11] 10...0-0 scores better than 10...Qc7.} 11. Nf1 {[%emt 0:00:24]} Qc7 {[%emt 0:01:00]} 12. Bg5 {[%emt 0:00:19]} Nd7 {[%emt 0:01:05]} 13. Bh4 {[%emt 0:00:09]} Bg6 {[%emt 0:01:56]} 14. Bxg6 {[%emt 0:00:14]} hxg6 {[%emt 0:00:02]} 15. Qd3 {[%emt 0:00:53] [#]} Rfe8 $146 {[%emt 0:00:39]} ({Predecessor:} 15... a6 16. Ng5 b5 17. a3 Rab8 18. Ne3 a5 19. Ng4 Rfe8 20. Rxe6 Rxe6 21. Nxe6 fxe6 22. Qxg6 Nd8 23. Bxd8 Rxd8 24. Nh6+ {1-0 (24) Grigore,N (2362)-Bucur,O (2207) Tusnad 2004}) 16. Rad1 {[%emt 0:00:24]} Rab8 {[%emt 0:01:12]} 17. Bg3 {[%emt 0:00:50]} Bxg3 {[%emt 0:00:29]} 18. Nxg3 {[%emt 0:00:01]} b5 {[%emt 0:01:29]} 19. h4 {[%emt 0:00:22]} Qf4 {[%emt 0:00:23]} 20. h5 {[%emt 0:01:07]} g5 {[%emt 0:00:17]} 21. Qe3 {[%emt 0:01:06]} (21. Ne2 $11 Qf6 22. Qe3) 21... Qxe3 $15 {[%emt 0:00:16]} 22. Rxe3 {[%emt 0:00:02]} f6 {[%emt 0:00:04]} (22... g4 $5 {[%cal Rg4f3]} 23. Nh2 Nf6 $15) 23. a3 {[%emt 0:00:18]} Na5 {[%emt 0:00:29][%cal Bc6a5,Ba5c4,Bc4d6,Bd6b5,Bb5d4][%mdl 32]} 24. Rde1 {[%emt 0:00:13]} Kf7 {[%emt 0:00:03]} 25. R3e2 {[%emt 0:00:22]} Nc4 {[%emt 0:00:11]} 26. Ra1 {[%emt 0:00:03]} a5 {[%emt 0:00:17]} 27. Ne1 {[%emt 0:00:22]} b4 {[%emt 0:00:57]} 28. axb4 {[%emt 0:00:02]} axb4 {[%emt 0:00:01]} 29. Ra7 {[%emt 0:00:20]} Re7 {[%emt 0:00:02]} 30. b3 {[%emt 0:00:27]} (30. Nd3 $11) 30... Nd6 $17 {[%emt 0:00:15]} 31. Ra6 {[%emt 0:00:01]} Nb5 {[%emt 0:00:07]} 32. c4 $2 {[%emt 0:00:20][%mdl 8192]} (32. Re3 $17) 32... Nxd4 $19 {[%emt 0:00:08]} 33. Rb2 {[%emt 0:00:00]} Nc5 {[%emt 0:00:09][%csl LRa6,LRb3] Prevents Nd3.} 34. Rd6 {[%emt 0:00:13]} Ndxb3 {[%emt 0:00:08]} 35. cxd5 {[%emt 0:00:06]} exd5 {[%emt 0:00:01]} 36. Nf3 {[%emt 0:00:06]} Ne6 $2 {[%emt 0:00:19]} 37. Rxb3 $16 {[%emt 0:00:03]} Nc5 {[%emt 0:00:07]} 38. Rb1 {[%emt 0:00:04]} Ne4 {[%emt 0:00:02]} (38... Rc7 $16 {was called for.}) 39. Rxd5 $4 {[%emt 0:00:06][%mdl 8192]} (39. Nxe4 $18 {was the only winning move.} dxe4 40. Nd4) 39... Nc3 $1 $19 {[%emt 0:00:02][%csl LRb1,LRd5]} 40. Rdd1 {[%emt 0:00:01]} (40. Nf5 Nxd5 41. Nxe7 Kxe7 42. g3) 40... Nxd1 {[%emt 0:00:02]} 41. Rxd1 {[%emt 0:00:01]} b3 {[%emt 0:00:00][%cal Bb4b3,Bb3b2][%mdl 32]} 42. Nf1 {[%emt 0:00:03]} b2 {[%emt 0:00:02]} 43. Rb1 {[%emt 0:00:01]} Rc7 {[%emt 0:00:02] Hoping for ...Rc1.} 44. N1d2 $2 {[%emt 0:00:02]} (44. Ne1) 44... Rc1+ {[%emt 0:00:01]} 45. Kh2 {[%emt 0:00:01]} Rxb1 {[%emt 0:00:07]} 46. Nxb1 {[%emt 0:00:01]} Rc8 {[%emt 0:00:05]} 47. Kg3 {[%emt 0:00:01]} Rc1 {[%emt 0:00:02]} 48. Nfd2 {[%emt 0:00:01]} Ke6 {[%emt 0:00:02]} 49. Kf3 {[%emt 0:00:03]} Kd5 {[%emt 0:00:01]} 50. Ke2 {[%emt 0:00:02]} f5 {[%emt 0:00:01][%mdl 1024] ...f4 is the strong threat. Black has strong compensation.} 51. Na3 {[%emt 0:00:08]} (51. g3 $17) 51... Rh1 {[%emt 0:00:01]} ({Weaker is} 51... Ra1 52. Nab1 $11) ({Better is} 51... f4 $19 {White must now prevent ...g4.} 52. Kd3 g4) 52. Nab1 {[%emt 0:00:06]} Kd4 {[%emt 0:00:01] Prevents Nc3.} ({Stronger than} 52... Rxh5 53. Nc3+ Kd4 54. Nd1 $15) 53. Nf3+ {[%emt 0:00:04]} Kc4 {[%emt 0:00:00]} 54. Nfd2+ {[%emt 0:00:01] [#]} Kb4 $1 {[%emt 0:00:01] And now ...g4 would win.} 55. Kd3 {[%emt 0:00:04]} Rxh5 {[%emt 0:00:01] Black is more active.} (55... Rc1 $142 56. Kd4 g4) 56. Kc2 {[%emt 0:00:03]} Rh2 {[%emt 0:00:01]} 57. Kxb2 $2 {[%emt 0:00:03][%mdl 8192]} (57. Nc3 $17 {was the crucial defense.}) 57... Rxg2 {[%emt 0:00:01]} 58. f3 {[%emt 0:00:01]} f4 $2 {[%emt 0:00:06]} (58... Re2 $19 59. Kc2 Re3) 59. Kc2 $11 {[%emt 0:00:01]} g4 {[%emt 0:00:01]} 60. Kd3 {[%emt 0:00:02]} (60. fxg4 $11 {was the only way to keep the balance.} Rg3 61. Ne4 Rxg4 62. Kd3) 60... gxf3 {[%emt 0:00:03]} ({Black should play} 60... g3 $17 {[%cal Og2d2] Threatens to win with ...Rxd2+!} 61. Nc3 Rh2 62. Nd5+ Kc5 63. Nxf4 g2 64. Ne4+ Kc6 65. Nxg2 Rxg2) 61. Nxf3 {[%emt 0:00:01]} g5 {[%emt 0:00:01]} 62. Nxg5 $2 {[%emt 0:00:06][%mdl 8192]} Rxg5 {[%emt 0:00:01] Black mates.} 63. Ke4 {[%emt 0:00:01] [#]} Rg2 $1 {[%emt 0:00:02]} 64. Kxf4 {[%emt 0:00:04]} Rb2 {[%emt 0:00:01] Weighted Error Value: White=0.68/Black=0.48} 0-1

[Event "HUN Women vs Morgan Stanley 2022"]
[Site "Budapest"]
[Date "2022.06.27"]
[Round "1.2"]
[White "Lizak, Peter"]
[Black "Gara, Ticia"]
[Result "1-0"]
[ECO "A10"]
[WhiteElo "2400"]
[BlackElo "2367"]
[Annotator "TA"]
[PlyCount "35"]
[EventDate "2022.06.27"]
[EventType "schev"]
[EventCountry "HUN"]
[SourceTitle "playchess.com"]
[Source "ChessBase"]
[SourceQuality "1"]
[TimeControl "900+2"]

{[%evp 12,35,21,24,43,43,40,32,69,56,57,34,50,55,82,-10,67,64,56,-13,200,161,269,261,795,622]} 1. c4 {[%emt 0:00:05]} b6 {[%emt 0:00:12]} 2. Nf3 {[%emt 0:01:17]} Bb7 {[%emt 0:00:02]} 3. g3 {[%emt 0:00:02]} g6 {[%emt 0:00:28]} 4. Bg2 {[%emt 0:00:04]} Bg7 {[%emt 0:00:01]} 5. O-O {[%emt 0:00:03]} Nf6 {[%emt 0:00:02]} 6. d4 {[%emt 0:00:13]} O-O {[%emt 0:00:07]} 7. d5 {[%emt 0:00:08] 7.Re1 is a critical line.} e6 {[%emt 0:00:23][%cal Re6d5] A50: Queen's Fianchetto Defence (1 d4 Nf6 2 c4 b6).} 8. Nc3 {[%emt 0:00:04]} exd5 {[%emt 0:00:12]} 9. cxd5 {[%emt 0:00:24]} Na6 {[%emt 0:01:41] White is slightly better.} 10. Nd4 {[%emt 0:00:31]} Re8 {[%emt 0:00:16]} 11. Bf4 {[%emt 0:00:20]} Nh5 {[%emt 0:00:38]} 12. Be3 {[%emt 0:00:34]} f5 {[%emt 0:01:21] [#]} 13. Nf3 $146 {[%emt 0:02:25] [#]} (13. Rc1 $16) ({Predecessor:} 13. Rc1 Nf6 14. Ndb5 Rxe3 15. fxe3 Ng4 16. Qd2 Bh6 17. Nd1 Nc5 18. b4 a6 19. Nxc7 Qxc7 20. bxc5 bxc5 {1-0 (28) Mladenov,P (2391)-Roscheisen,M Latschach 2011}) 13... Nc5 {[%emt 0:01:48]} (13... Rxe3 $1 $11 14. fxe3 Qe7) 14. Bxc5 $14 {[%emt 0:01:53]} bxc5 {[%emt 0:00:02]} 15. d6 {[%emt 0:00:03]} (15. Qb3 $14 Bxc3 16. d6+ (16. bxc3 Rb8 $11) 16... Kg7 17. Qxc3+ (17. Qxb7 Ba5 $14) 17... Qf6 18. Qxc5 cxd6 19. Qc2) 15... Kh8 $2 {[%emt 0:01:21]} (15... Bc6 $1 $11 {and Black has nothing to worry.}) 16. Nb5 {[%emt 0:00:10][%cal Bc3b5,Bb5d6,Bd6f7][%mdl 32]} cxd6 {[%emt 0:02:07]} (16... Rc8 {was worth a try.}) 17. Nxd6 $18 {[%emt 0:00:11] [#] Strongly threatening Nf7+.} Be4 $2 {[%emt 0:00:50]} (17... Qc7 18. Nxb7 (18. Nxe8 Rxe8 19. Qc2 Nf6 $16) 18... d5) 18. Nf7+ {[%emt 0:00:03] Weighted Error Value: White=0.30/Black=0.72} 1-0

[Event "HUN Women vs Morgan Stanley 2022"]
[Site "Budapest"]
[Date "2022.06.27"]
[Round "1.4"]
[White "Torok, Sandor"]
[Black "Lazarne Vajda, Szidonia"]
[Result "1-0"]
[ECO "A04"]
[WhiteElo "2184"]
[BlackElo "2313"]
[Annotator "TA"]
[PlyCount "91"]
[EventDate "2022.06.27"]
[EventType "schev"]
[EventCountry "HUN"]
[SourceTitle "playchess.com"]
[Source "ChessBase"]
[SourceQuality "1"]
[TimeControl "900+2"]

{[%evp 9,91,-9,0,0,0,0,0,-7,-11,-5,0,0,0,0,29,-26,0,-46,0,0,27,36,59,47,49,18,25,24,24,14,19,20,19,28,62,59,50,50,56,37,39,31,27,27,37,40,56,60,98,104,109,108,127,127,213,147,147,147,227,193,287,287,277,147,147,147,147,147,222,147,147,147,342,310,597,581,533,516,485,465,925,902,1826,1668]} 1. Nf3 {[%emt 0:00:10]} c5 {[%emt 0:00:06]} 2. b3 {[%emt 0:00:22]} d5 {[%emt 0:00:25]} 3. g3 {[%emt 0:00:14]} Nc6 {[%emt 0:00:02]} 4. Bb2 {[%emt 0:00:04]} f6 {[%emt 0:00:47]} 5. d4 {[%emt 0:00:49]} cxd4 {[%emt 0:00:12]} 6. Nxd4 {[%emt 0:00:03] A06: Réti Opening: 1 Nf3 d5.} e5 {[%emt 0:00:04]} 7. Nxc6 {[%emt 0:00:16]} bxc6 {[%emt 0:00:01]} 8. Bg2 {[%emt 0:00:02] The position is equal.} Bb4+ {[%emt 0:00:36]} 9. c3 {[%emt 0:00:14]} Ba5 {[%emt 0:00:10]} 10. O-O {[%emt 0:00:14]} Ne7 {[%emt 0:00:12]} 11. c4 {[%emt 0:01:03] [#]} Rb8 $146 {[%emt 0:00:51]} ({Predecessor:} 11... Be6 12. Nc3 O-O 13. cxd5 cxd5 14. Rc1 d4 15. Na4 Bd5 16. Qd3 Re8 17. Rc5 Bxg2 18. Kxg2 {½-½ (54) Matlakov,M (2676)-Yemelin,V (2564) St Petersburg 2013}) 12. Qc1 {[%emt 0:01:03]} (12. Nc3 $142) 12... O-O {[%emt 0:00:10]} (12... Bg4 $5 {[%cal Rg4e2]} 13. Qc2 Be6 $11) 13. Rd1 {[%emt 0:00:43]} (13. Nc3 $11 {should be considered.}) 13... Be6 {[%emt 0:01:15]} (13... d4 $15) 14. Nc3 $11 {[%emt 0:00:40]} Bxc3 {[%emt 0:02:15]} 15. Bxc3 {[%emt 0:00:41]} Qb6 {[%emt 0:00:02]} 16. Qa3 {[%emt 0:00:28]} Kf7 {[%emt 0:01:26]} 17. cxd5 {[%emt 0:02:21]} cxd5 {[%emt 0:00:13]} 18. Rac1 {[%emt 0:00:21] Strongly threatening Ba5.} Rfc8 {[%emt 0:00:53]} 19. Ba5 {[%emt 0:00:55]} Qa6 {[%emt 0:00:09]} 20. Bb4 {[%emt 0:00:11] This bishop pair is nice.} Qxa3 {[%emt 0:01:05]} 21. Bxa3 {[%emt 0:00:02]} Rxc1 {[%emt 0:00:37]} 22. Rxc1 {[%emt 0:00:01] Rc7 is the strong threat.} Rc8 {[%emt 0:00:03] Against Rc7} 23. Rxc8 {[%emt 0:00:05]} Nxc8 $14 {[%emt 0:00:14][%mdl 4096] Endgame KBB-KBN} 24. Bc5 {[%emt 0:00:11]} Ke8 {[%emt 0:01:00]} 25. Kf1 {[%emt 0:00:35]} Kd7 {[%emt 0:00:07]} 26. Ke1 {[%emt 0:00:13]} g6 {[%emt 0:00:02]} 27. Kd2 {[%emt 0:00:28]} Kc6 {[%emt 0:00:01]} 28. Bf8 {[%emt 0:00:02]} f5 {[%emt 0:00:07]} 29. Bg7 {[%emt 0:00:07]} Kd6 {[%emt 0:00:39]} 30. f4 {[%emt 0:00:01]} exf4 {[%emt 0:00:05]} 31. gxf4 {[%emt 0:00:01]} Ne7 {[%emt 0:00:47]} (31... Kc6 $16 32. Kc3 Nd6) 32. e3 {[%emt 0:00:22]} Nc6 {[%emt 0:00:03]} 33. Kc3 {[%emt 0:00:03]} Kc5 {[%emt 0:00:13] [#]} (33... a6 $16 34. Bf8+ Kc7) 34. b4+ $1 $18 {[%emt 0:00:37]} Kb6 {[%emt 0:00:09] [#]} (34... Kb5 $142) 35. a4 $1 {[%emt 0:00:03]} a6 {[%emt 0:00:13]} 36. Bf8 {[%emt 0:00:08]} (36. Bd4+ $18 Kb7 37. Bc5) 36... Bf7 {[%emt 0:00:05]} 37. Bc5+ {[%emt 0:00:01]} Kb7 {[%emt 0:00:03]} 38. h4 {[%emt 0:00:28]} Nd8 {[%emt 0:00:07]} (38... Be6 $16 {is a better defense.} 39. Bf8 Kc7) 39. Be7 {[%emt 0:00:25]} Nc6 {[%emt 0:00:02]} 40. Bd6 {[%emt 0:00:06]} Nd8 $2 {[%emt 0:00:01] A mistake that costs the game.} (40... Kb6 $16 41. Bf8 Nd8) 41. Kd4 {[%emt 0:00:18]} Kc6 {[%emt 0:00:01]} (41... Kc8 42. Bxd5 Kd7) 42. Be7 {[%emt 0:00:07] White is clearly winning.} Ne6+ {[%emt 0:00:38]} 43. Ke5 {[%emt 0:00:00]} Nc7 {[%emt 0:00:02]} 44. Kf6 {[%emt 0:00:12]} Be6 {[%emt 0:00:02]} (44... Be8 $142 45. Bd8 a5 46. b5+ Kd7) 45. Bd8 {[%emt 0:00:09] And now Bxc7 would win.} Kd7 {[%emt 0:00:05]} 46. Bxc7 {[%emt 0:00:02] Weighted Error Value: White=0.12 (very precise) /Black=0.36} 1-0

[Event "HUN Women vs Morgan Stanley 2022"]
[Site "Budapest"]
[Date "2022.06.27"]
[Round "1.5"]
[White "Terbe, Julianna"]
[Black "Tomosvary, Attila"]
[Result "0-1"]
[ECO "B07"]
[WhiteElo "2304"]
[BlackElo "2140"]
[Annotator "TA"]
[PlyCount "52"]
[EventDate "2022.06.27"]
[EventType "schev"]
[EventCountry "HUN"]
[SourceTitle "playchess.com"]
[Source "ChessBase"]
[SourceQuality "1"]
[TimeControl "900+2"]

{[%evp 12,52,22,17,32,14,41,34,47,35,56,31,22,32,41,37,41,0,0,-4,0,-40,0,0,0,-16,-7,-8,-8,-3,-5,-29,-22,-18,-6,-54,-8,-114,-92,-92,-92,-447,-437]} 1. e4 {[%emt 0:00:04]} d6 {[%emt 0:00:24]} 2. d4 {[%emt 0:00:03]} Nf6 {[%emt 0:00:09]} 3. Nc3 {[%emt 0:00:02]} e5 {[%emt 0:00:14]} 4. Nge2 {[%emt 0:00:57]} Nbd7 {[%emt 0:00:54]} 5. g3 {[%emt 0:00:42]} Be7 {[%emt 0:00:37]} 6. Bg2 {[%emt 0:00:02]} O-O {[%emt 0:00:34]} 7. O-O {[%emt 0:00:03]} Re8 {[%emt 0:00:34] B07: Pirc Defence: Miscellaneous Systems.} 8. h3 {[%emt 0:00:28]} exd4 {[%emt 0:01:45]} 9. Nxd4 {[%emt 0:00:22]} Nc5 {[%emt 0:00:08] White is slightly better.} 10. Re1 {[%emt 0:05:07]} Bf8 {[%emt 0:01:26] [#]} 11. Bg5 $146 {[%emt 0:00:10]} ({Predecessor:} 11. b3 a5 12. Bb2 a4 13. Qd2 a3 14. Bc1 c6 15. Qf4 Nd5 16. Qf3 Nxc3 17. Qxc3 {1-0 (46) Alekseenko,K (2696)-Shahaliyev,I (2413) Chess.com INT 2021}) 11... h6 {[%emt 0:01:28]} 12. Bf4 {[%emt 0:00:23]} Ne6 {[%emt 0:00:39]} 13. Nxe6 {[%emt 0:00:18]} Bxe6 {[%emt 0:00:13]} 14. e5 {[%emt 0:00:04]} dxe5 {[%emt 0:00:11]} 15. Bxe5 {[%emt 0:00:02]} c6 {[%emt 0:00:34]} 16. a3 {[%emt 0:03:11]} Qxd1 {[%emt 0:01:17]} 17. Raxd1 {[%emt 0:00:01]} Rad8 {[%emt 0:00:04]} 18. Bc7 {[%emt 0:00:29]} Rxd1 {[%emt 0:00:15]} 19. Rxd1 {[%emt 0:00:01]} Bf5 {[%emt 0:00:38]} 20. Rd2 {[%emt 0:00:14]} h5 {[%emt 0:00:12]} 21. Ne2 {[%emt 0:02:20]} g6 {[%emt 0:00:09]} 22. Nd4 {[%emt 0:00:13]} Be4 {[%emt 0:01:00]} 23. f3 {[%emt 0:00:21]} (23. c4 $11) 23... Bh6 {[%emt 0:00:10]} (23... Bd5 $15) 24. Re2 {[%emt 0:00:04]} (24. Bf4 $1 $11 {keeps the balance.} Bxf4 25. gxf4) 24... Bd5 {[%emt 0:00:01] Strongly threatening ...c5.} 25. Rxe8+ {[%emt 0:00:01]} Nxe8 {[%emt 0:00:00]} 26. Bb8 $2 {[%emt 0:00:04][%mdl 8192] [#]} (26. Bf4 $17 {is tougher.} Bxf4 27. gxf4) 26... Be3+ {[%emt 0:00:02] Weighted Error Value: White=0.63/Black=0.12 (very precise)} 0-1

[Event "HUN Women vs Morgan Stanley 2022"]
[Site "Budapest"]
[Date "2022.06.27"]
[Round "1.6"]
[White "Gaal, Zsoka"]
[Black "Szamoskozi, Gabor"]
[Result "1-0"]
[ECO "B06"]
[WhiteElo "2323"]
[BlackElo "2243"]
[Annotator "TA"]
[PlyCount "75"]
[EventDate "2022.06.27"]
[EventType "schev"]
[EventCountry "HUN"]
[SourceTitle "playchess.com"]
[Source "ChessBase"]
[SourceQuality "1"]
[TimeControl "900+2"]

{[%evp 17,75,14,27,0,16,9,14,-1,0,0,8,0,22,0,0,0,0,0,0,0,0,0,68,25,30,30,24,14,54,28,26,31,31,35,157,117,100,109,126,114,183,62,142,33,235,235,235,228,227,225,1222,1331,1185,1112,1091,439,1158,1104,5047,1960]} 1. d4 {[%emt 0:00:04]} g6 {[%emt 0:00:13]} 2. e4 {[%emt 0:00:05]} Bg7 {[%emt 0:00:06]} 3. Nc3 {[%emt 0:00:02]} c6 {[%emt 0:00:18]} 4. Nf3 {[%emt 0:00:08]} d5 {[%emt 0:00:14]} 5. h3 {[%emt 0:00:03]} dxe4 {[%emt 0:00:33]} 6. Nxe4 {[%emt 0:00:02]} Nf6 {[%emt 0:00:13]} 7. Nxf6+ {[%emt 0:00:07]} exf6 {[%emt 0:00:02]} 8. Bc4 {[%emt 0:00:28]} O-O {[%emt 0:00:14]} 9. O-O {[%emt 0:00:03]} Nd7 {[%emt 0:00:39]} 10. c3 {[%emt 0:00:13] B15: Caro-Kann: 3 Nc3: 3...g6 and 3...dxe4 4 Nxe4 Nf6 5 Nxf6+ exf6.} Nb6 {[%emt 0:00:09] 10...b5 deserves study.} 11. Bb3 {[%emt 0:00:02]} Re8 {[%emt 0:00:18]} 12. Bf4 {[%emt 0:01:00] The position is equal.} Be6 {[%emt 0:00:20]} 13. Re1 {[%emt 0:00:40] [#]} Bxb3 $146 {[%emt 0:00:37]} ({Predecessor:} 13... Qd7 14. Bh2 a5 15. Bxe6 Rxe6 16. Qb3 Rxe1+ 17. Rxe1 Nc8 18. Qc4 b5 19. Qe2 Bf8 {1-0 (49) Samant,A (2433)-Hirneise,J (2314) Chess.com INT 2022}) 14. Qxb3 {[%emt 0:00:04]} Qd5 {[%emt 0:00:07]} 15. Nd2 {[%emt 0:02:03]} h5 {[%emt 0:00:47]} 16. h4 {[%emt 0:01:02]} Rac8 {[%emt 0:02:07]} 17. Qxd5 {[%emt 0:00:59]} Nxd5 {[%emt 0:00:39]} 18. Bh2 {[%emt 0:00:26]} Bf8 {[%emt 0:00:34]} 19. Kf1 {[%emt 0:01:13]} c5 {[%emt 0:00:59]} (19... Rxe1+ $11 20. Rxe1 f5) 20. dxc5 {[%emt 0:00:03]} Bxc5 {[%emt 0:00:29]} 21. Ne4 {[%emt 0:00:07] Threatens to win with Rad1.} Kg7 {[%emt 0:00:09]} 22. Rad1 {[%emt 0:01:06][%cal Ba1d1,Bd1e1,Be1e7,Be7b7][%mdl 32]} Nb6 {[%emt 0:00:19]} (22... Ne3+ $5 23. Rxe3 Bxe3 $11) 23. Nxc5 {[%emt 0:00:32]} Rxe1+ {[%emt 0:00:03]} 24. Rxe1 {[%emt 0:00:02]} Rxc5 $14 {[%emt 0:00:01][%mdl 4096] Endgame KRB-KRN} 25. Re7 {[%emt 0:00:37]} Rc4 {[%emt 0:00:24]} (25... Rb5 $14) 26. Rxb7 {[%emt 0:00:25]} Rxh4 {[%emt 0:00:21]} 27. Bb8 {[%emt 0:00:11]} Rh1+ {[%emt 0:01:15]} 28. Ke2 {[%emt 0:00:01] White is more active.} Rb1 {[%emt 0:00:13]} (28... Nc4 $16) 29. b3 {[%emt 0:01:24]} ({Stronger than} 29. Rxa7 Rxb2+ 30. Kf3 Nc4 $17) (29. Bxa7 $18 Nc4 30. a4) 29... Rb2+ {[%emt 0:00:42] [#]} (29... g5 $14) 30. Kf3 {[%emt 0:00:01]} ({White has to play} 30. Kd3 $1 $16) 30... Rxa2 {[%emt 0:00:17] This costs Black the game.} ({Better is} 30... Nc4 $1 $14) 31. Bxa7 $18 {[%emt 0:00:06]} ({Not} 31. Rxa7 Rc2 $11) 31... Nd5 {[%emt 0:00:22]} 32. c4 {[%emt 0:00:07][%cal Bc3c4,Bc4c5,Bc5c6,Bc6c7][%mdl 32]} Nc3 {[%emt 0:00:46] [#]} 33. c5 $1 {[%emt 0:01:04]} Nd1 $2 {[%emt 0:00:17]} (33... g5 34. c6 g4+ 35. Ke3 Ra6) 34. c6 {[%emt 0:00:05] White is clearly winning.} Rc2 {[%emt 0:00:10]} 35. c7 {[%emt 0:00:12]} g5 {[%emt 0:00:12]} 36. g3 {[%emt 0:00:19]} (36. Ke4 $142) 36... Kg6 {[%emt 0:00:10]} (36... Rc6 $142 37. b4 g4+ 38. Kg2 Nc3) 37. b4 {[%emt 0:00:09] Strongly threatening Bc5.} f5 {[%emt 0:00:13]} 38. Bc5 {[%emt 0:00:04] Weighted Error Value: White=0.34/Black=0.40} 1-0

[Event "HUN Women vs Morgan Stanley 2022"]
[Site "Budapest"]
[Date "2022.06.27"]
[Round "2.1"]
[White "Lizak, Peter"]
[Black "Hoang, Thanh Trang"]
[Result "0-1"]
[ECO "A10"]
[WhiteElo "2400"]
[BlackElo "2376"]
[Annotator "TA"]
[PlyCount "54"]
[EventDate "2022.06.27"]
[EventType "schev"]
[EventCountry "HUN"]
[SourceTitle "playchess.com"]
[Source "ChessBase"]
[SourceQuality "1"]
[TimeControl "900+2"]

{[%evp 9,54,43,50,54,60,28,34,42,42,37,28,20,20,0,0,0,0,-16,0,-8,0,-31,-31,-64,-75,-61,0,-12,0,-6,52,-577,-597,-654,-664,-644,-659,-641,-632,-679,-649,-1292,-1285,-1426,-1426,-1322,-1288]} 1. c4 {[%emt 0:00:05]} f5 {[%emt 0:00:06]} 2. g3 {[%emt 0:00:02]} Nf6 {[%emt 0:00:03]} 3. Bg2 {[%emt 0:00:02]} e6 {[%emt 0:00:33]} 4. Nf3 {[%emt 0:00:21]} d5 {[%emt 0:00:05]} 5. O-O {[%emt 0:00:06]} Bd6 {[%emt 0:00:21]} 6. d3 {[%emt 0:00:05] A10: English Opening: Unusual Replies for Black.} Nc6 {[%emt 0:00:34]} 7. Nc3 {[%emt 0:01:00]} dxc4 {[%emt 0:00:12]} 8. dxc4 {[%emt 0:00:18][%cal Oe2e4] White is slightly better.} O-O {[%emt 0:00:22]} 9. e4 {[%emt 0:01:04]} e5 {[%emt 0:01:09]} 10. exf5 {[%emt 0:02:14]} Bxf5 {[%emt 0:00:18]} 11. c5 {[%emt 0:00:32]} Bxc5 {[%emt 0:00:53]} 12. Qb3+ {[%emt 0:00:02]} Kh8 {[%emt 0:00:29] Hoping for ...Bd3.} 13. Qxb7 {[%emt 0:00:18] [#]} Bd7 $146 {[%emt 0:01:31]} ({Predecessor:} 13... Nb4) 14. Qb5 {[%emt 0:00:24]} Qe7 {[%emt 0:01:53]} 15. Qc4 {[%emt 0:05:01]} Rab8 {[%emt 0:01:33]} 16. Ne4 {[%emt 0:02:19]} Nxe4 {[%emt 0:01:26]} 17. Qxe4 {[%emt 0:00:02]} Rb4 {[%emt 0:00:05] Black is more active.} (17... Nd4 $1 $15 18. Nxd4 (18. Nxe5 $2 Bf5 $19) 18... Bxd4) 18. Qd5 $11 {[%emt 0:00:44]} e4 $36 {[%emt 0:00:43][%mdl 2048] Black has the initiative.} 19. Bg5 $1 {[%emt 0:00:14]} ({Reject} 19. Ng5 Rd4 20. Qb3 h6 $19) 19... Qe8 {[%emt 0:01:32]} 20. Nd2 $2 {[%emt 0:00:08][%mdl 8192] [#] This move loses the game for White.} (20. Qxc5 $14 {is the one way to stay ahead.} exf3 21. Rfe1) 20... Rf5 $19 {[%emt 0:00:11] Black is clearly winning.} 21. Qxe4 {[%emt 0:00:17]} Rxe4 {[%emt 0:00:02]} 22. Nxe4 {[%emt 0:00:02]} Bb6 {[%emt 0:00:14]} 23. Rad1 {[%emt 0:00:08]} Rf8 {[%emt 0:00:11]} 24. Bd2 {[%emt 0:00:12]} Nd4 {[%emt 0:00:06]} 25. Kh1 {[%emt 0:00:05]} Bc6 {[%emt 0:00:05]} 26. Rde1 {[%emt 0:00:02]} Nf3 {[%emt 0:00:08]} 27. Bxf3 {[%emt 0:00:05]} Rxf3 {[%emt 0:00:02] Weighted Error Value: White=0.71/Black=0.11 (very precise)} 0-1